bitfinex-derivatives/quotes_ETHF0:USTF0_20250209
["timestamp","ask_amount","ask_price","bid_price","bid_amount"]
[1739125680713,0.00376251,2637.1,2637.0,8.18550668]
[1739125685917,0.00376251,2637.1,2636.7,3.2078]
[1739125686115,0.00376251,2637.1,2636.7,11.39330668]
[1739125687124,0.00376251,2637.1,2636.7,3.2078]
[1739125689617,0.55266251,2637.1,2636.7,3.2078]
[1739125689818,0.00300288,2636.9,2636.7,3.2078]
[1739125690220,0.00300288,2636.9,2636.7,11.39330668]
[1739125691122,0.00300288,2636.9,2636.7,3.2078]
[1739125693728,0.00300288,2636.9,2636.7,11.39330668]
[1739125693925,0.00376251,2637.1,2636.7,3.2078]
[1739125694226,0.00376251,2637.1,2637.0,3.2078]
[1739125694622,0.00376251,2637.1,2637.0,3.7974]
[1739125696728,0.00376251,2637.1,2637.0,11.98290668]
[1739125699732,0.00376251,2637.1,2637.0,8.77510668]
[1739125699938,0.00376251,2637.1,2637.0,11.98290668]
[1739125700229,0.00376251,2637.1,2637.0,11.39330668]
[1739125702729,0.00376251,2637.1,2637.0,8.18550668]
[1739125702926,0.00376251,2637.1,2636.7,3.2078]
[1739125703132,0.00376251,2637.1,2636.6,3.8133]
[1739125704131,0.00376251,2637.1,2636.6,0.6055]
[1739125705432,4.31140346,2637.0,2636.5,0.00569833]
[1739125705734,5.13929739,2636.9,2636.5,0.00569833]
[1739125705937,5.74066943,2636.9,2636.5,0.00569833]
[1739125706129,3.97418055,2636.8,2636.5,0.00569833]
[1739125717647,4.57514415,2636.8,2636.5,0.00569833]
[1739125718450,6.28009739,2636.9,2636.5,0.00569833]
[1739125718837,4.32712238,2636.8,2636.5,0.00569833]
[1739125719645,3.41179739,2636.6,2636.5,0.00569833]
[1739125720146,7.64867433,2636.6,2636.5,0.00569833]
[1739125723459,7.64867433,2636.6,2635.8,3.2078]
[1739125723759,4.91304196,2636.5,2635.8,3.2078]
[1739125723957,0.5735,2636.4,2635.8,3.2078]
[1739125724155,1.69,2636.3,2635.8,3.2078]
[1739125724349,5.10179739,2636.3,2635.8,3.2078]
[1739125724548,4.29023294,2636.2,2635.8,3.2078]
[1739125724755,4.29023294,2636.2,2635.8,3.21349833]
[1739125731671,4.29023294,2636.2,2635.8,0.00569833]
[1739125733365,0.53101,2635.9,2635.4,3.2078]
[1739125733664,3.41179739,2635.7,2635.0,1.1656]
[1739125733868,1.691,2635.6,2635.0,1.1656]
[1739125734068,6.04654719,2635.6,2635.0,1.1656]
[1739125734570,3.41179739,2635.4,2635.0,0.00569833]
[1739125734868,1.1327,2635.3,2635.0,0.00569833]
[1739125735058,5.41129712,2635.3,2635.0,0.00569833]
[1739125735260,5.99789712,2635.3,2635.0,0.00569833]
[1739125738570,5.41129712,2635.3,2635.0,0.00569833]
[1739125739473,1.691,2635.4,2635.0,0.00569833]
[1739125740265,4.32203266,2635.3,2635.0,0.00569833]
[1739125740667,1.691,2635.4,2635.0,0.00569833]
[1739125742577,4.38358509,2635.3,2635.0,0.00569833]
[1739125756893,3.41179739,2635.1,2635.0,0.00569833]
[1739125757083,6.61959739,2635.1,2635.0,0.00569833]
[1739125757289,12.02741517,2635.1,2634.3,3.2078]
[1739125757492,3.41179739,2634.8,2634.3,3.2078]
[1739125757687,1.691,2634.7,2634.3,3.2078]
[1739125757990,5.90048163,2634.7,2634.3,3.2078]
[1739125758187,0.6034,2634.6,2634.3,3.2078]
[1739125758586,4.11680503,2634.5,2634.3,3.2078]
[1739125758980,7.52860242,2634.5,2634.2,0.00569833]
[1739125759383,7.52860242,2634.5,2634.0,3.2078]
[1739125759588,0.06377589,2634.4,2634.0,3.2078]
[1739125760093,4.24684528,2634.3,2633.6,4.3994]
[1739125760289,4.80604528,2634.3,2633.6,4.3994]
[1739125760495,0.00569833,2634.2,2633.7,0.00569833]
[1739125760788,5.93784528,2634.1,2633.7,0.00569833]
[1739125761187,0.5638,2634.0,2633.7,0.00569833]
[1739125761689,4.13164668,2633.9,2633.7,8.19120501]
[1739125767391,4.13164668,2633.9,2633.7,0.00569833]
[1739125767597,0.00569833,2634.2,2633.7,8.19120501]
[1739125768001,4.32819938,2634.1,2633.7,8.19120501]
[1739125769201,4.32819938,2634.1,2633.8,0.00268616]
[1739125769601,4.32819938,2634.1,2633.8,8.18819284]
[1739125770307,4.32819938,2634.1,2633.8,0.00268616]
[1739125770505,0.6057,2634.0,2633.8,0.00268616]
[1739125771005,4.30808472,2633.9,2633.8,0.00268616]
[1739125771403,4.30808472,2633.9,2633.8,8.18819284]
[1739125774804,1.692,2634.1,2633.8,0.00268616]
[1739125775109,6.07137485,2634.1,2634.0,3.2078]
[1739125776007,6.07137485,2634.1,2633.8,0.00268616]
[1739125777513,0.00569833,2634.2,2634.0,3.2078]
[1739125777819,0.00569833,2634.2,2634.1,1.1266]
[1739125780121,0.00569833,2634.2,2634.1,9.31210668]
[1739125781720,0.00569833,2634.2,2634.1,9.91460668]
[1739125784529,0.00569833,2634.2,2634.1,8.18550668]
[1739125788629,0.00569833,2634.2,2633.8,0.57948616]
[1739125789220,0.00569833,2634.2,2633.8,8.76499284]
[1739125790429,0.00569833,2634.2,2633.8,0.57948616]
[1739125790622,4.24571301,2634.1,2633.8,0.57948616]
[1739125790824,0.5697,2634.0,2633.8,0.57948616]
[1739125791326,0.5697,2634.0,2633.8,8.76499284]
[1739125794223,4.34695328,2633.9,2633.8,0.00268616]
[1739125794430,8.35095067,2633.9,2633.8,0.00268616]
[1739125795627,4.93915328,2633.9,2633.8,0.00268616]
[1739125796131,6.63015328,2633.9,2633.8,0.00268616]
[1739125800434,4.93915328,2633.9,2633.8,0.00268616]
[1739125800629,4.34695328,2633.9,2633.8,0.00268616]
[1739125800830,1.691,2634.1,2633.8,0.00268616]
[1739125801231,4.05257099,2634.0,2633.8,0.00268616]
[1739125801423,4.60087099,2634.0,2633.8,0.00268616]
[1739125801829,0.5715,2633.9,2633.8,0.00268616]
[1739125802229,4.87997688,2633.9,2633.8,8.18819284]
[1739125804336,4.87997688,2633.9,2633.8,0.00268616]
[1739125804640,8.29177427,2633.9,2633.8,0.00268616]
[1739125804836,4.87997688,2633.9,2633.8,0.00268616]
[1739125805139,0.00569833,2634.2,2633.8,3.21048616]
[1739125805434,0.00569833,2634.2,2633.9,1.6916]
[1739125807233,0.00569833,2634.2,2633.9,9.87710668]
[1739125807433,4.1072173,2634.1,2633.8,3.21048616]
[1739125807624,1.197,2634.0,2633.8,3.21048616]
[1739125808136,3.41749572,2634.2,2633.8,3.21048616]
[1739125808137,4.1072173,2633.9,2633.8,3.21048616]
[1739125808332,0.00569833,2634.2,2633.8,3.21048616]
[1739125809834,0.00569833,2634.2,2634.1,3.2078]
[1739125813330,0.00569833,2634.2,2634.1,11.39330668]
[1739125814339,7.49743582,2634.2,2633.8,0.00268616]
[1739125814545,1.1367,2634.1,2633.8,0.00268616]
[1739125814836,3.41179739,2633.9,2633.8,0.00268616]
[1739125815441,7.40363473,2633.9,2633.8,0.00268616]
[1739125815640,7.46738553,2633.9,2632.9,3.2078]
[1739125815841,3.2078,2633.8,2632.9,3.2078]
[1739125816237,3.41179739,2633.6,2632.9,3.2078]
[1739125816438,0.5514,2633.5,2632.9,3.2078]
[1739125816745,4.29927406,2633.5,2633.3,3.2078]
[1739125816944,1.691,2634.0,2633.3,3.2078]
[1739125817144,1.691,2634.0,2633.6,3.2078]
[1739125817835,1.691,2634.0,2633.6,8.18550668]
[1739125818542,1.691,2634.0,2633.6,6.61959739]
[1739125818937,1.691,2634.0,2633.7,0.601]
[1739125819339,0.00569833,2634.2,2633.7,0.601]
[1739125819637,0.00569833,2634.2,2633.9,3.2078]
[1739125820639,0.00569833,2634.2,2633.9,6.61959739]
[1739125820939,0.00569833,2634.2,2633.9,14.80510407]
[1739125821336,0.00569833,2634.2,2633.9,6.61959739]
[1739125821833,5.10279739,2635.1,2633.9,12.61959739]
[1739125822139,5.10279739,2635.1,2634.4,3.2078]
[1739125822140,4.96069666,2635.0,2634.4,3.2078]
[1739125822335,4.96069666,2635.0,2634.5,1.1914]
[1739125822940,4.96639499,2635.0,2634.5,1.19709833]
[1739125824341,4.96639499,2635.0,2634.6,0.5565]
[1739125824945,4.96639499,2635.0,2634.6,8.73630835]
[1739125827152,4.96639499,2635.0,2634.6,0.5565]
[1739125827341,0.58029833,2635.0,2634.6,0.5565]
[1739125828548,0.58029833,2635.0,2634.6,8.73630835]
[1739125829251,0.00569833,2635.0,2634.7,3.2078]
[1739125831248,0.00569833,2635.0,2634.8,3.41179739]
[1739125832346,0.00569833,2635.0,2634.8,11.59160574]
[1739125833546,0.00569833,2635.0,2634.8,3.41179739]
[1739125834444,0.00569833,2635.0,2634.7,3.2078]
[1739125834850,0.00569833,2635.0,2634.9,3.41179739]
[1739125837248,0.6054,2635.6,2634.9,9.41179739]
[1739125837447,0.6054,2635.6,2635.3,3.2078]
[1739125837848,0.6054,2635.6,2635.2,0.5859]
[1739125838249,0.6054,2635.6,2635.2,8.76001002]
[1739125839150,3.41179739,2635.4,2635.0,3.2078]
[1739125839451,3.41179739,2635.1,2635.0,3.2078]
[1739125839950,4.16680293,2635.1,2635.0,3.2078]
[1739125840352,0.5752,2635.2,2635.0,3.2078]
[1739125841051,0.5752,2635.2,2635.0,11.38191002]
[1739125841353,4.11046656,2635.1,2635.0,3.2078]
[1739125843051,0.5752,2635.2,2635.0,3.2078]
[1739125843957,1.69,2635.4,2635.0,3.2078]
[1739125844156,1.69,2635.4,2635.1,1.7592]
[1739125844460,3.2078,2635.5,2635.1,9.93331002]
[1739125844656,0.5773,2635.6,2635.1,9.93331002]
[1739125844961,0.5773,2635.6,2635.1,1.7592]
[1739125845355,0.5773,2635.6,2635.3,3.2078]
[1739125846856,3.41749572,2635.7,2635.3,3.2078]
[1739125847053,3.41749572,2635.7,2635.2,3.2078]
[1739125847251,4.12431563,2635.6,2635.2,3.2078]
[1739125849656,4.12431563,2635.6,2635.2,11.38191002]
[1739125850059,1.69569833,2635.7,2635.2,3.2078]
[1739125850963,0.00569833,2635.7,2635.2,3.2078]
[1739125851659,0.00569833,2635.7,2635.5,3.2078]
[1739125852259,0.00569833,2635.7,2635.6,0.5501]
[1739125854564,0.00569833,2635.7,2635.6,8.72421002]
[1739125854959,0.00569833,2635.7,2635.5,3.2078]
[1739125855160,0.59939833,2635.7,2635.5,3.2078]
[1739125855354,3.98804255,2635.6,2635.5,3.2078]
[1739125858365,0.00569833,2635.7,2635.5,3.2078]
[1739125859764,0.00569833,2635.7,2635.5,8.17411002]
[1739125859969,0.00569833,2635.7,2635.6,0.5979]
[1739125861166,7.52470763,2635.7,2635.5,3.2078]
[1739125862873,7.52470763,2635.7,2635.2,0.5979]
[1739125863877,4.11291024,2635.7,2635.2,0.5979]
[1739125864074,0.00569833,2635.7,2635.4,3.2078]
[1739125865378,0.00569833,2635.7,2635.4,6.61959739]
[1739125865878,0.5905,2636.3,2635.4,6.61959739]
[1739125866082,0.5905,2636.3,2636.0,3.2078]
[1739125866382,0.5905,2636.3,2636.1,1.1531]
[1739125867581,3.81626039,2636.5,2636.1,1.1531]
[1739125867777,0.00569833,2636.5,2636.3,3.2078]
[1739125869086,0.00569833,2636.5,2636.4,0.5793]
[1739125870485,0.00569833,2636.5,2636.4,8.17411002]
[1739125871887,0.00569833,2636.5,2636.3,6.61959739]
[1739125874379,0.5659,2637.5,2636.3,13.15049739]
[1739125874581,0.6049,2637.7,2637.2,6.61959739]
[1739125874783,0.6049,2637.7,2637.3,1.7237]
[1739125876281,1.1577,2637.7,2637.2,0.00568731]
[1739125876984,2.8467,2637.7,2637.2,0.00568731]
[1739125878796,0.5733,2637.6,2637.2,0.00568731]
[1739125879691,3.41179739,2637.5,2637.2,0.00568731]
[1739125879993,3.2078,2637.3,2637.2,0.00568731]
[1739125880182,3.27186574,2637.3,2637.2,0.00568731]
[1739125880594,7.37389876,2637.3,2637.2,0.00568731]
[1739125881394,7.37389876,2637.3,2636.3,3.41179739]
[1739125881592,3.47586313,2637.2,2636.4,0.5898]
[1739125881891,3.2078,2637.0,2636.1,3.2078]
[1739125882086,4.07259104,2636.9,2636.1,3.2078]
[1739125882289,8.09394023,2636.9,2636.1,3.2078]
[1739125882495,8.09394023,2636.9,2636.2,0.00568731]
[1739125882884,3.41179739,2636.6,2636.2,0.00568731]
[1739125883093,3.41179739,2636.3,2636.2,0.00568731]
[1739125883489,7.68730334,2636.3,2636.2,0.00568731]
[1739125883690,8.24340334,2636.3,2636.2,0.00568731]
[1739125884496,8.80460334,2636.3,2635.4,3.2078]
[1739125884793,3.41179739,2635.8,2635.4,3.2078]
[1739125884988,5.09979739,2635.8,2635.4,3.2078]
[1739125885188,4.30063088,2635.7,2635.4,3.2078]
[1739125885896,1.69368731,2635.8,2635.4,3.2078]
[1739125887783,1.69368731,2635.8,2635.3,0.00568731]
[1739125888086,5.1054847,2635.8,2635.3,0.00568731]
[1739125888288,5.25887978,2635.7,2635.3,0.00568731]
[1739125890696,0.00568731,2635.8,2635.6,3.2078]
[1739125890899,0.00568731,2635.8,2635.7,0.5607]
[1739125891198,1.689,2636.4,2635.7,3.97249739]
[1739125891399,1.689,2636.4,2636.1,3.2078]
[1739125893206,1.689,2636.4,2635.8,4.3876]
[1739125894299,1.689,2636.4,2635.8,12.55601169]
[1739125894595,1.689,2636.4,2636.1,3.2078]
[1739125894896,0.00568731,2636.5,2636.1,3.2078]
[1739125895099,0.00568731,2636.5,2636.1,11.37621169]
[1739125897201,0.00568731,2636.5,2636.4,3.2078]
[1739125897503,0.00568731,2636.5,2636.4,3.7693]
[1739125897702,0.00568731,2636.5,2636.4,4.3559]
[1739125898498,0.00568731,2636.5,2636.4,12.52431169]
[1739125898804,0.00568731,2636.5,2636.3,3.41179739]
[1739125898805,0.00568731,2636.5,2635.8,3.8114]
[1739125899001,0.00568731,2636.5,2635.9,0.591]
[1739125899201,0.57118731,2636.5,2635.9,0.591]
[1739125899401,0.57118731,2636.5,2636.2,3.2078]
[1739125900803,4.35276292,2636.4,2635.9,0.591]
[1739125901606,1.689,2636.3,2635.7,0.5574]
[1739125901899,1.689,2636.3,2635.5,0.6059]
[1739125901900,3.41179739,2636.1,2635.5,0.6059]
[1739125902100,3.41179739,2636.1,2635.2,0.6059]
[1739125902299,4.74866934,2636.0,2635.3,3.21348731]
[1739125902496,0.586,2635.9,2635.3,3.21348731]
[1739125903012,3.99436786,2635.8,2635.3,3.21348731]
[1739125904101,3.99436786,2635.8,2635.3,0.00568731]
[1739125905109,3.99436786,2635.8,2635.3,3.21348731]
[1739125906898,3.99436786,2635.8,2635.3,0.00568731]
[1739125907202,1.689,2635.7,2635.3,0.00568731]
[1739125907603,4.27996429,2635.6,2635.3,0.00568731]
[1739125907815,4.21591676,2635.6,2635.3,0.00568731]
[1739125909106,4.21591676,2635.6,2635.4,3.41179739]
[1739125909307,1.1916401,2636.3,2635.5,0.5473]
[1739125909504,0.5897,2636.3,2635.8,3.2078]
[1739125909702,4.60064626,2636.3,2635.9,0.5789]
[1739125910703,4.01094626,2636.3,2636.2,3.2078]
[1739125911009,1.69468731,2636.5,2636.2,3.2078]
[1739125911211,1.69468731,2636.5,2635.9,3.7867]
[1739125911417,3.94804743,2636.4,2635.9,3.7867]
[1739125911915,0.5954,2636.3,2635.9,3.7867]
[1739125912213,3.94804743,2636.4,2635.9,3.7867]
[1739125913408,0.00568731,2636.5,2636.0,3.41179739]
[1739125913608,0.00568731,2636.5,2636.2,3.2078]
[1739125913808,0.00568731,2636.5,2636.1,0.5773]
[1739125914005,0.00568731,2636.5,2636.2,3.2078]
[1739125916021,4.24960703,2636.4,2636.2,3.2078]
[1739125919622,4.24960703,2636.4,2635.9,3.7867]
[1739125919815,4.24960703,2636.4,2635.9,11.95511169]
[1739125920012,4.24960703,2636.4,2635.5,3.7948]
[1739125920316,4.24960703,2636.4,2635.8,3.2078]
[1739125920922,0.61265197,2636.3,2635.8,3.2078]
[1739125921116,0.5486,2636.3,2635.8,3.2078]
[1739125921313,0.5486,2636.3,2635.3,0.00568731]
[1739125921514,6.61959739,2635.5,2635.3,0.00568731]
[1739125921719,2.8515,2635.4,2635.3,0.00568731]
[1739125921921,7.23523581,2635.4,2635.3,0.00568731]
[1739125922626,7.76632581,2635.4,2635.3,0.00568731]
[1739125922829,7.23523581,2635.4,2634.6,0.5676]
[1739125923024,3.41179739,2635.1,2634.4,3.2078]
[1739125923627,4.2813995,2635.0,2634.4,11.37621169]
[1739125923826,4.21734447,2635.0,2634.4,3.2078]
[1739125924031,0.00568731,2635.0,2634.4,11.381899]
[1739125925327,0.00568731,2635.0,2634.7,3.2078]
[1739125925719,0.00568731,2635.0,2634.7,11.37621169]
[1739125926927,0.00568731,2635.0,2634.8,0.5595]
[1739125927228,0.00568731,2635.0,2634.8,8.72791169]
[1739125929328,0.00568731,2635.0,2634.9,0.5708]
[1739125931835,0.5665,2635.7,2634.9,4.52772098]
[1739125932032,3.95692098,2636.2,2635.2,3.2078]
[1739125932237,2.2952,2636.1,2635.5,3.2078]
[1739125932435,6.56820284,2636.1,2635.6,0.5914]
[1739125933131,4.27869015,2636.1,2635.7,3.2078]
[1739125933441,4.27869015,2636.1,2635.7,3.8062]
[1739125934432,0.00568731,2636.1,2635.7,3.8062]
[1739125935040,0.00568731,2636.1,2636.0,3.2078]
[1739125937641,0.00568731,2636.1,2636.0,11.37621169]
[1739125939341,0.00568731,2636.1,2636.0,3.2078]
[1739125941950,0.00568731,2636.1,2636.0,11.37621169]
[1739125944051,0.00568731,2636.1,2636.0,3.2078]
[1739125949260,0.00568731,2636.1,2636.0,6.60418767]
[1739125952759,0.00568731,2636.1,2636.0,14.77259936]
[1739125963361,0.00568731,2636.1,2636.0,11.56479936]
[1739125963565,0.00568731,2636.1,2636.0,14.77259936]
[1739125964665,0.00568731,2636.1,2636.0,11.56479936]
[1739125964862,0.00568731,2636.1,2636.0,14.77259936]
[1739125968070,0.00568731,2636.1,2636.0,11.56479936]
[1739125968268,0.00568731,2636.1,2636.0,14.77259936]
[1739125976868,0.00568731,2636.1,2636.0,3.2078]
[1739125980373,4.08687499,2636.1,2635.8,0.00568731]
[1739125980682,6.60418767,2635.9,2635.3,3.2078]
[1739125981067,4.10095751,2635.8,2635.3,3.2078]
[1739125981272,1.688,2635.7,2635.3,3.2078]
[1739125981774,4.03345265,2635.6,2635.3,3.2078]
[1739125983277,1.688,2635.7,2635.3,3.2078]
[1739125983484,4.00630761,2635.6,2635.3,3.2078]
[1739125983775,4.00630761,2635.6,2635.2,0.00568731]
[1739125983776,0.593,2635.5,2635.2,0.00568731]
[1739125984172,4.28420398,2635.4,2635.2,0.00568731]
[1739125985774,5.37780398,2635.4,2635.2,0.00568731]
[1739125985979,5.37780398,2635.4,2634.9,3.2078]
[1739125986782,3.39638767,2635.3,2634.9,3.2078]
[1739125987182,3.99871171,2635.2,2634.9,3.2078]
[1739125987378,1.688,2635.1,2634.9,3.2078]
[1739125988489,1.688,2635.1,2634.8,3.21348731]
[1739125988688,1.688,2635.1,2634.8,6.60987498]
[1739125988887,1.688,2635.1,2634.8,3.21348731]
[1739125989079,4.94793354,2635.0,2634.8,3.21348731]
[1739125989280,6.07233354,2635.0,2634.8,3.21348731]
[1739125990488,6.07233354,2635.0,2634.8,0.00568731]
[1739125996592,6.07233354,2635.0,2634.9,0.02423648]
[1739126001395,5.50163354,2635.0,2634.9,0.02423648]
[1739126003005,4.89673354,2635.0,2634.9,0.02423648]
[1739126006296,8.88825008,2635.0,2634.8,0.00568731]
[1739126006602,0.59515887,2634.9,2634.4,0.5841]
[1739126006807,4.3535,2634.8,2634.4,0.5841]
[1739126007102,8.63242294,2634.8,2634.4,0.5841]
[1739126013606,8.07162294,2634.8,2634.4,0.5841]
[1739126013805,7.48672294,2634.8,2634.4,1.1639]
[1739126014109,1.32776,2635.4,2634.6,3.2078]
[1739126014110,3.2078,2635.4,2634.6,3.2078]
[1739126014501,4.0469521,2635.2,2634.6,3.2078]
[1739126014709,4.0469521,2635.3,2634.6,3.2078]
[1739126014904,3.2078,2635.4,2634.6,3.2078]
[1739126015108,4.19225337,2635.3,2634.6,3.2078]
[1739126015412,5.88025337,2635.3,2634.6,3.2078]
[1739126016907,5.88025337,2635.3,2634.6,11.37621169]
[1739126017512,4.19225337,2635.3,2634.6,11.37621169]
[1739126019611,4.19225337,2635.3,2634.8,3.39638767]
[1739126019814,1.1835,2635.8,2634.9,1.1397]
[1739126020010,3.27173796,2635.7,2635.1,6.60418767]
[1739126020211,3.2078,2635.7,2635.1,6.60418767]
[1739126022617,3.2078,2635.7,2635.1,14.77259936]
[1739126023012,4.14165397,2635.6,2635.1,3.2078]
[1739126023216,4.14165397,2635.6,2634.9,1.7207]
[1739126023917,0.5502,2635.5,2634.9,1.7207]
[1739126024221,3.2078,2635.7,2634.9,1.7207]
[1739126024417,4.05878031,2635.4,2634.9,1.7207]
[1739126024620,4.05878031,2635.5,2634.9,1.7207]
[1739126024816,4.05878031,2635.6,2634.9,1.7207]
[1739126024817,3.2078,2635.7,2634.9,1.7207]
[1739126025019,0.06393841,2635.6,2634.9,1.7207]
[1739126025321,4.28043128,2635.4,2634.9,1.7207]
[1739126025618,4.28043128,2635.5,2634.9,1.7207]
[1739126025619,3.2078,2635.7,2634.9,1.7207]
[1739126025815,4.3014,2635.7,2634.9,1.7207]
[1739126026019,4.3014,2635.7,2634.8,6.60418767]
[1739126026020,3.39638767,2635.3,2634.8,3.2078]
[1739126026222,1.7462,2635.2,2634.8,3.2078]
[1739126026523,5.74009732,2635.2,2634.8,3.2078]
[1739126029829,3.2078,2635.1,2634.4,4.935]
[1739126030324,4.24385375,2635.0,2634.4,4.935]
[1739126030628,4.24385375,2635.0,2634.4,1.7272]
[1739126031529,4.24385375,2635.0,2634.4,4.935]
[1739126032131,7.64024142,2635.0,2634.1,3.2078]
[1739126032332,3.2078,2634.8,2634.1,3.2078]
[1739126032533,0.5987,2634.7,2634.1,3.2078]
[1739126032734,5.55256842,2634.7,2634.1,3.2078]
[1739126036634,5.55256842,2634.7,2633.9,4.51148767]
[1739126036635,7.23956842,2634.7,2633.9,4.51148767]
[1739126036937,3.2078,2634.5,2633.9,1.1151]
[1739126037436,7.39450062,2634.4,2633.5,3.2078]
[1739126037834,0.6011,2634.3,2633.5,3.2078]
[1739126038039,4.3353,2634.2,2633.6,0.5954]
[1739126038230,1.687,2634.1,2633.6,0.5954]
[1739126038635,3.94828981,2634.0,2633.6,0.5954]
[1739126039037,3.94828981,2634.0,2633.6,8.76381169]
[1739126039337,3.94828981,2634.0,2633.6,0.5954]
[1739126039939,3.94828981,2634.0,2633.5,3.2078]
[1739126041537,3.94828981,2634.0,2633.6,0.5736]
[1739126047545,1.6427,2634.2,2633.6,0.5736]
[1739126047546,0.5491,2634.2,2633.6,3.96998767]
[1739126047744,0.5491,2634.2,2633.8,3.2078]
[1739126047945,0.5491,2634.2,2633.9,0.6075]
[1739126048146,3.99945766,2634.1,2633.6,0.5736]
[1739126051147,3.99945766,2634.1,2633.6,3.96998767]
[1739126053549,3.99945766,2634.1,2633.6,12.13839936]
[1739126055456,3.99945766,2634.1,2633.8,3.2078]
[1739126055660,3.2078,2634.2,2633.9,1.1323]
[1739126056052,3.2078,2634.2,2634.0,0.5659]
[1739126058051,4.14360103,2634.1,2634.0,8.16841169]
[1739126058250,4.71410103,2634.1,2633.7,0.5639]
[1739126063456,0.5705,2634.1,2633.8,3.2078]
[1739126064155,0.5705,2634.1,2633.9,0.5687]
[1739126064759,0.5705,2634.1,2633.9,3.96508767]
[1739126064956,1.0936,2634.6,2634.0,0.5607]
[1739126065158,1.1689,2634.6,2634.2,3.2078]
[1739126065358,4.27777572,2634.4,2634.2,3.2078]
[1739126065560,4.27777572,2634.4,2634.1,0.5512]
[1739126066064,4.27777572,2634.4,2634.2,3.2078]
[1739126067362,4.27777572,2634.4,2634.2,11.37621169]
[1739126067959,4.27777572,2634.4,2634.2,3.2078]
[1739126068161,1.1689,2634.6,2634.2,3.2078]
[1739126068960,4.19355633,2634.5,2634.1,0.5512]
[1739126069161,1.1689,2634.6,2634.2,6.60418767]
[1739126071669,1.1689,2634.6,2634.2,14.77259936]
[1739126073972,1.1689,2634.6,2634.2,3.2078]
[1739126074275,4.31133651,2634.5,2634.2,3.2078]
[1739126074476,0.5673,2634.4,2634.2,3.2078]
[1739126074874,4.31133651,2634.3,2633.9,3.7765]
[1739126075375,0.5531,2634.2,2633.9,11.94491169]
[1739126075569,0.5711,2634.1,2633.9,11.94491169]
[1739126079887,0.5711,2634.1,2633.8,0.59]
[1739126079888,0.5711,2634.1,2633.6,3.96138767]
[1739126080186,0.5711,2634.1,2633.5,3.2078]
[1739126080187,3.95730051,2634.0,2633.5,3.2078]
[1739126080592,3.95730051,2634.0,2633.5,11.37621169]
[1739126082488,2.2581,2634.1,2633.4,1.1591]
[1739126082489,2.2581,2634.1,2633.8,3.2078]
[1739126082795,1.687,2634.1,2633.9,1.6994]
[1739126084692,0.5531,2634.2,2633.9,1.6994]
[1739126085894,0.5531,2634.2,2633.9,9.86781169]
[1739126086798,0.5531,2634.2,2633.9,13.07561169]
[1739126087898,0.5531,2634.2,2633.9,4.9072]
[1739126088096,0.5531,2634.2,2633.9,3.2078]
[1739126088296,4.67545687,2634.1,2633.9,3.2078]
[1739126089193,4.67545687,2634.1,2633.7,0.5881]
[1739126089697,5.27955687,2634.1,2633.7,0.5881]
[1739126090489,4.12665687,2634.1,2633.9,3.39638767]
[1739126090693,1.7773332,2634.7,2634.0,1.1794]
[1739126090996,1.7773332,2634.7,2634.5,3.2078]
[1739126091196,1.7773332,2634.7,2634.3,3.39638767]
[1739126091197,1.1754,2634.7,2634.6,0.584]
[1739126091701,1.1754,2634.7,2634.6,8.75241169]
[1739126092493,1.1754,2634.7,2634.6,0.584]
[1739126095201,1.1754,2634.7,2634.6,8.75241169]
[1739126095795,0.00568731,2634.8,2634.6,8.75241169]
[1739126097005,0.00568731,2634.8,2634.7,0.561]
[1739126097403,0.00568731,2634.8,2634.7,8.72941169]
[1739126103506,0.00568731,2634.8,2634.7,0.561]
[1739126107496,0.00568731,2634.8,2634.7,3.7688]
[1739126110706,1.686,2636.0,2634.7,9.7688]
[1739126110906,0.6071,2635.8,2635.4,3.2078]
[1739126111111,4.63083064,2635.8,2635.4,3.2078]
[1739126111402,4.63083064,2635.8,2635.4,3.7873]
[1739126111910,4.63083064,2635.8,2635.6,3.39638767]
[1739126112107,0.6071,2635.8,2635.6,3.39638767]
[1739126114507,0.6071,2635.8,2635.6,11.56479936]
[1739126114902,0.6071,2635.8,2635.5,0.5595]
[1739126115709,0.60268731,2635.9,2635.6,3.39638767]
[1739126115710,0.00568731,2635.9,2635.6,3.39638767]
[1739126119005,0.00568731,2635.9,2635.6,11.56479936]
[1739126119703,7.265131,2635.8,2635.3,0.00568731]
[1739126119907,7.796141,2635.8,2635.3,0.00568731]
[1739126120104,3.2078,2635.5,2635.3,0.00568731]
[1739126120306,3.4418,2635.4,2634.8,3.2078]
[1739126120514,8.53253935,2635.4,2634.8,3.2078]
[1739126120806,0.06380054,2635.3,2634.8,3.2078]
[1739126121400,4.27451126,2635.2,2634.8,3.2078]
[1739126121902,3.4418,2635.4,2634.6,0.5777]
[1739126122199,4.33833737,2635.3,2634.6,0.5777]
[1739126122407,4.27451126,2635.3,2634.6,1.1848]
[1739126122606,3.4418,2635.4,2634.6,1.1848]
[1739126122811,3.2078,2635.2,2634.6,1.1848]
[1739126123007,3.2078,2635.2,2634.5,3.2078]
[1739126123217,0.0638211,2635.1,2634.5,3.2078]
[1739126123405,4.07877952,2635.1,2634.5,3.2078]
[1739126123606,0.0638211,2635.0,2634.5,3.2078]
[1739126124115,3.2078,2634.8,2634.2,0.5957]
[1739126124308,2.8437,2634.7,2634.2,0.5957]
[1739126124505,2.8437,2634.7,2634.1,6.60418767]
[1739126124815,7.10087126,2634.7,2634.1,6.60418767]
[1739126127612,4.82727126,2634.7,2634.1,6.60418767]
[1739126128512,0.5701,2634.7,2634.1,6.60418767]
[1739126128712,4.27711066,2634.6,2634.1,6.60418767]
[1739126129115,4.27711066,2634.6,2634.1,14.77259936]
[1739126130615,3.2078,2634.8,2634.4,6.60418767]
[1739126130913,3.2078,2634.8,2634.5,1.7662]
[1739126131214,3.2078,2634.8,2634.5,9.35511169]
[1739126131415,0.55898731,2634.9,2634.5,9.35511169]
[1739126131616,0.55898731,2634.9,2634.5,1.1867]
[1739126131916,3.94932299,2634.8,2634.5,1.1867]
[1739126132313,3.94932299,2634.8,2634.5,9.35511169]
[1739126132919,0.55898731,2634.9,2634.5,9.35511169]
[1739126132920,0.00568731,2634.9,2634.7,3.39638767]
[1739126133311,0.00568731,2634.9,2634.7,6.60418767]
[1739126134614,0.6018,2635.7,2634.7,6.60418767]
[1739126134817,0.6018,2635.7,2635.2,3.39638767]